Cogmind - Beta 15 @@@ ROGUE MODE // 2025.06.03 @ 22:46:06 Player: HSFM Result: Destroyed by D-53 Grenadier with Mini Grenade Launcher Performance ------------- Evolutions (0) 0 Regions Visited (4) 800 Robots Destroyed (9) 45 Value Destroyed (78) 78 Prototype IDs (23) 460 Alien Tech Used (0) 0 Bonus (300) 300 TOTAL SCORE: 1683 Bonus ------- Aligned with FarCom 300 Cogmind --------- Core Integrity 0/250 Matter 259/300 Energy 248/250 System Corruption 0% Temperature Cool (1) Movement Core (150) Ox2 Location -9/Mines Parts ------- > --- POWER (1) -------- Ion Engine > --- PROPULSION (2) --- (None) > --- UTILITY (2) ------ (None) > --- WEAPON (2) ------- Longsword +1 > --- INVENTORY (5) ---- High-capacity Storage Unit Seismic Detector Mining Laser Peak State ------------ > --- POWER ------------ Ion Engine > --- PROPULSION ------- Aluminum Leg Aluminum Leg > --- UTILITY ---------- Improved Terrain Scanner > --- WEAPON ----------- Rocket Launcher Longsword +1 > --- INVENTORY -------- High-capacity Storage Unit Seismic Detector Mining Laser [Rating: 16] Favorites ----------- Power Ion Engine Engine Ion Engine Propulsion Flight Unit Leg Aluminum Leg Flight Unit Flight Unit Utility Structural Scanner Device Structural Scanner Storage High-capacity Storage Unit Weapon Medium Laser Energy Gun Medium Laser Ballistic Gun Assault Rifle Launcher Rocket Launcher Slashing Weapon Longsword +1 Build | -11 -10 -10 -10 -9 ------- Run | Yrd Mat Min Exi Min Slots Evolved . | . . . . . Power . | . . . . . Propulsion . | . . . . . Utility . | . . . . . Weapon . | . . . . . Parts Attached 20 | 7 3 1 1 8 Power 2 | 1 . . . 1 Engine 2 | 1 . . . 1 Core . | . . . . . Reactor . | . . . . . Propulsion 9 | 2 2 . . 5 Treads . | . . . . . Leg 6 | 2 . . . 4 Wheel . | . . . . . Hover . | . . . . . Flight 3 | . 2 . . 1 Utility 5 | 2 1 . 1 1 Device 3 | 1 1 . . 1 Storage 2 | 1 . . 1 . Processor . | . . . . . Hackware . | . . . . . Protection . | . . . . . Artifact . | . . . . . Weapon 4 | 2 . 1 . 1 Energy Gun 1 | 1 . . . . Energy Cannon . | . . . . . Ballistic Gun 1 | 1 . . . . Ballistic Cannon . | . . . . . Launcher 1 | . . 1 . . Special Weapon . | . . . . . Impact Weapon . | . . . . . Slashing Weapon 1 | . . . . 1 Piercing Weapon . | . . . . . Special Melee Weapon . | . . . . . Unidentified Prototypes . | . . . . . Parts Lost 6 | . . . . 6 Power . | . . . . . Propulsion 3 | . . . . 3 Utility 2 | . . . . 2 Weapon 1 | . . . . 1 Highest Loss Streak 4 | . . . . 4 To Critical Strikes . | . . . . . Average Backups 4 | . 2 4 5 4 Power . | . . . . . Propulsion . | . . 1 . . Utility 1 | . 1 2 2 2 Weapon 2 | . 1 1 2 1 Tool/Special . | . . . . . Unused Backups 3 | . . . . 3 Power 1 | . . . . 1 Propulsion . | . . . . . Utility 1 | . . . . 1 Weapon 1 | . . . . 1 Tool/Special . | . . . . . Average Slot Usage (%) 71 | . 99 57 70 58 Engine 14 | . 14 14 14 14 Leg 1 | . 28 . . 5 Flight 25 | . . 28 28 18 Device 13 | . 14 14 14 3 Storage 12 | . 14 . 13 1 Peak Build Rating 16 | 9 9 6 7 16 Average Rating 6 | 5 8 4 6 11 On Entrance 4 | . 9 4 4 7 Naked Turns . | . . . . . Heaviest Build 49 | 15 15 6 46 49 Greatest Support 20 | 20 20 8 8 20 Greatest Overweight (x) 6 | . 2 . 5 6 Average Overweight (x) 2 | . . . 3 . Largest Inventory Capacity 20 | 8 8 5 20 20 Average Capacity 17 | 7 7 5 19 6 Most Carried 7 | 2 5 5 7 6 Average Carried 4 | . 2 4 5 4 Final Capacity 20 | 8 5 5 20 5 Final Carried 7 | 2 5 4 7 3 Class Distribution -------------------- 100% | Mutant Dominant Class ---------------- Mutant | -10/Materials Mutant | -10/Mines Mutant | -10/Exiles Mutant | -9/Mines Resources | -11 -10 -10 -10 -9 ----------- Run | Yrd Mat Min Exi Min Matter Collected 450 | 300 . . . 150 Remotely . | . . . . . Salvage Created 165 | 87 12 . . 66 Parts 18 | 11 4 . . 3 Haulers Intercepted . | . . . . . Recyclers Shooed . | . . . . . Parts Field Recycled . | . . . . . Retrieved Matter . | . . . . . Parts Self-Destructed . | . . . . . Prevented . | . . . . . Kills | -11 -10 -10 -10 -9 ------- Run | Yrd Mat Min Exi Min Combat Hostiles Destroyed 5 | . 1 . . 4 Melee 4 | . . . . 4 Guns 1 | . 1 . . . Classes Destroyed 2 | 1 1 . . . Tunneler 4 | 4 . . . . Swarmer 5 | . 1 . . 4 Best Kill Streak 4 | 2 1 . . 4 Combat Bots Only 4 | . 1 . . 4 Max Kills in Single Turn 1 | 1 1 . . 1 Gunslinging . | . . . . . Exploded . | . . . . . Melee 1 | . . . . 1 Uniques/NPCs Destroyed . | . . . . . Combat | -11 -10 -10 -10 -9 -------- Run | Yrd Mat Min Exi Min Hostile Shots Fired 68 | . 22 . . 46 Missed 17 | . 5 . . 12 Hits 51 | . 17 . . 34 Projectile 51 | . 17 . . 34 AOE 8 | . . . . 8 Damage Taken 691 | . 144 . . 547 Core 257 | . 25 . . 232 Absorbed by Shields . | . . . . . Core Remaining (%) 100 | 100 . . . . Volleys Fired 15 | 10 3 . . 2 Largest 2 | 2 2 . . 1 Hottest 70 | 70 70 . . 33 Shots Fired 28 | 20 6 . . 2 Gun 26 | 20 6 . . . Cannon . | . . . . . Launcher 2 | . . . . 2 Special . | . . . . . Kinetic 13 | 10 3 . . . Thermal 13 | 10 3 . . . Explosive 2 | . . . . 2 Electromagnetic . | . . . . . Robot Hit Streak 5 | 5 1 . . 1 Robot Miss Streak 3 | 1 2 . . 3 Penetration Max . | . . . . . Secondary Targets . | . . . . . Shots Hit Robots 22 | 12 2 . . 8 Core Hits 10 | 4 1 . . 5 Critical Kills . | . . . . . Critical Parts Destroyed . | . . . . . Critical Strikes 2 | 1 . . . 1 Burn 1 | 1 . . . . Sever 1 | . . . . 1 Melee Attacks 10 | . . . . 10 Impact . | . . . . . Slashing 10 | . . . . 10 Piercing . | . . . . . Sneak Attacks . | . . . . . Combat Hostiles . | . . . . . Follow-up Attacks . | . . . . . Damage Inflicted 507 | 151 26 . . 330 Guns 177 | 151 26 . . . Cannons . | . . . . . Explosions 11 | . . . . 11 Melee 319 | . . . . 319 Ramming . | . . . . . Kinetic 116 | 90 26 . . . Thermal 61 | 61 . . . . Explosive 11 | . . . . 11 Electromagnetic . | . . . . . Impact . | . . . . . Slashing 319 | . . . . 319 Piercing . | . . . . . Highest Corruption . | . . . . . Average Corruption . | . . . . . Corruption Purged . | . . . . . Corruption Blocked . | . . . . . Overload Shots . | . . . . . Overflow Damage 35 | . . . . 35 Projectiles . | . . . . . Explosions . | . . . . . Melee 35 | . . . . 35 Knockbacks . | . . . . . Impact . | . . . . . Kinetic . | . . . . . Secondary . | . . . . . Self-Inflicted Damage 21 | . . . . 21 Shots 1 | . . . . 1 Rammed . | . . . . . Targets Rammed . | . . . . . Kicked . | . . . . . Crushed . | . . . . . Highest Temperature 27 | 27 27 . . . Average Temperature 12 | 12 14 . . . Received Heat Transfer . | . . . . . Siege Activations . | . . . . . Martial Activations . | . . . . . Shielding Activations . | . . . . . Robots Disrupted . | . . . . . Combat Hostiles . | . . . . . Robots Corrupted . | . . . . . Combat Hostiles . | . . . . . Parts Fried . | . . . . . Impact Corruptions . | . . . . . Robots Melted . | . . . . . Combat Hostiles . | . . . . . Parts Melted 1 | 1 . . . . Heat Transferred 259 | 259 . . . . Parts Sabotaged . | . . . . . Parts Stolen . | . . . . . Parts Stripped . | . . . . . Power Chain Reactions . | . . . . . Alert | -11 -10 -10 -10 -9 ------- Run | Yrd Mat Min Exi Min Maximum Alert Level . | . . . . . Low Security (%) 100 | 100 100 100 . 100 Level 1 . | . . . . . Level 2 . | . . . . . Level 3 . | . . . . . Level 4 . | . . . . . Level 5 . | . . . . . High Security . | . . . . . Max Security . | . . . . . Peak Influence 60 | 10 20 3 . 60 Initial 3 | . . 3 . . Average 10 | 1 2 1 . 27 Influence Increases 137 | 20 20 . . 97 Destroy 0b10 Robot/C 100 | . 20 . . 80 Destroy 0b10 Robot/NC 20 | 20 . . . . Destroy Leader 10 | . . . . 10 Destroy Structure 7 | . . . . 7 Influence Decreases 137 | 20 10 10 . 97 Entered New Map 7 | . . 7 . . Time Decay 103 | 20 10 3 . 70 Lost Part 27 | . . . . 27 Squads Dispatched 1 | . 1 . . . Investigation . | . . . . . Extermination . | . . . . . Reinforcement 1 | . 1 . . . Assault . | . . . . . Garrison . | . . . . . Intercept . | . . . . . Searches Triggered . | . . . . . Construction Impeded . | . . . . . Haulers Reinforced . | . . . . . Active Scanning Responses . | . . . . . Cargo Convoy Interrupts . | . . . . . Stealth | -11 -10 -10 -10 -9 --------- Run | Yrd Mat Min Exi Min Distress Signals 1 | . . . . 1 Communications Jammed . | . . . . . Distress Signals . | . . . . . Times Spotted 9 | . 4 . . 5 Peak Tracking Total 4 | . 3 . . 4 Tactical Retreats . | . . . . . Traps | -11 -10 -10 -10 -9 ------- Run | Yrd Mat Min Exi Min Traps Triggered . | . . . . . Indirectly . | . . . . . Trap Hack Attempts . | . . . . . Triggered . | . . . . . Disarmed . | . . . . . Reprogrammed . | . . . . . Reused . | . . . . . Traps Extracted . | . . . . . Installed . | . . . . . Triggered . | . . . . . Machines | -11 -10 -10 -10 -9 ---------- Run | Yrd Mat Min Exi Min Machines Disabled . | . . . . . Max in Single Turn . | . . . . . Machines Repaired . | . . . . . Machines Dismantled . | . . . . . Machines Sabotaged . | . . . . . Overloaded Fab Kills . | . . . . . Hacking | -11 -10 -10 -10 -9 --------- Run | Yrd Mat Min Exi Min Machines Accessed 6 | . 1 . 5 . Terminals 1 | . 1 . . . Fabricators . | . . . . . Repair Stations . | . . . . . Recycling Units . | . . . . . Scanalyzers . | . . . . . Garrison Access . | . . . . . Total Hacks 54 | . 4 . 50 . Successful 50 | . . . 50 . Failed 4 | . 4 . . . Catastrophic 1 | . 1 . . . Database Lockouts . | . . . . . Manual 1 | . . . 1 . Terminals 4 | . 4 . . . Fabricators . | . . . . . Repair Stations . | . . . . . Recycling Units . | . . . . . Scanalyzers . | . . . . . Garrison Access . | . . . . . Terminal Hacks 50 | . . . 50 . Record 49 | . . . 49 . Proto ID Catalog 1 | . . . 1 . Fabricator Hacks . | . . . . . Repair Station Hacks . | . . . . . Recycling Unit Hacks . | . . . . . Scanalyzer . | . . . . . Garrison Access Hacks . | . . . . . Unauthorized Hacks . | . . . . . Terminals . | . . . . . Fabricators . | . . . . . Repair Stations . | . . . . . Recycling Units . | . . . . . Scanalyzers . | . . . . . Garrison Access . | . . . . . Data Cores Recovered . | . . . . . Used . | . . . . . Hacking Detections 1 | . 1 . . . Full Trace Events 1 | . 1 . . . Feedback Events . | . . . . . Feedback Blocked . | . . . . . Robot Schematics Acquired . | . . . . . Robots Built . | . . . . . Authchips . | . . . . . Time . | . . . . . Total Robot Build Rating . | . . . . . Part Schematics Acquired . | . . . . . Parts Built . | . . . . . Authchips . | . . . . . Time . | . . . . . Total Part Build Rating . | . . . . . Parts Repaired . | . . . . . Time . | . . . . . Parts Recycled . | . . . . . Recycled Matter . | . . . . . Retrieved Matter . | . . . . . Retrieved Components . | . . . . . Parts Scanalyzed . | . . . . . Part Schematics Acquired . | . . . . . Parts Damaged . | . . . . . Bothacking | -11 -10 -10 -10 -9 ------------ Run | Yrd Mat Min Exi Min Used RIF Installer . | . . . . . Robots Hacked . | . . . . . Non-combat . | . . . . . Combat . | . . . . . Robot Hacks Applied . | . . . . . Relay Couplers Released . | . . . . . Fabnet Peak Effective % . | . . . . . Robots Rewired . | . . . . . Allies Hacked . | . . . . . Hacks Repelled . | . . . . . Allies | -11 -10 -10 -10 -9 -------- Run | Yrd Mat Min Exi Min Total Allies . | . . . . . Largest Group . | . . . . . Highest-Rated Group . | . . . . . Highest-Rated Ally . | . . . . . Total Orders . | . . . . . Ally Attacks . | . . . . . Total Damage . | . . . . . Kills . | . . . . . Allies Corrupted . | . . . . . Allies Melted . | . . . . . Intel | -11 -10 -10 -10 -9 ------- Run | Yrd Mat Min Exi Min Active Infowar (turns) 2474 | 26 142 40 2234 32 Terrain 142 | 26 103 . . 13 Structural 2331 | . 39 40 2234 18 Seismic 1 | . . . . 1 Robot Analysis Total . | . . . . . Derelict Logs Recovered . | . . . . . Drone Launches . | . . . . . Drone Recoveries . | . . . . . Exploration | -11 -10 -10 -10 -9 ------------- Run | Yrd Mat Min Exi Min Turns Passed 2713 | 136 142 40 2234 161 Spaces Moved 1039 | 81 105 87 671 95 Core 8 | 5 . . . 3 Treads . | . . . . . Legs 204 | 76 97 . . 31 Wheels . | . . . . . Hover . | . . . . . Flight 827 | . 8 87 671 61 Fastest Speed 37 | 50 37 37 37 37 Average Speed 245 | 115 115 37 332 78 Slowest Speed 517 | 120 210 37 437 517 Overloaded Moves . | . . . . . Propulsion Burnouts . | . . . . . Robots Hopped . | . . . . . Potential Cave-ins 1 | . . . . 1 Cave-ins Triggered . | . . . . . Exploration Rate (%) 32 | 4 24 28 94 10 Regions Visited 4 Branch Regions 3 Pre-discovered Areas 1 | . . . 1 . Known Exits Taken . | . . . . . Unknown Exits Taken 4 | 1 1 1 1 . Scrap Searched . | . . . . . Spaces Dug 1 | . . . . 1 Terrain Destroyed 16 | . . . . 16 Melee 1 | . . . . 1 Projectile . | . . . . . AOE 15 | . . . . 15 Terrain Rammed . | . . . . . Walls Destroyed . | . . . . . Machines Disabled . | . . . . . Actions | -11 -10 -10 -10 -9 --------- Run | Yrd Mat Min Exi Min Total 1162 | 101 119 95 675 172 Wait 49 | . 3 5 . 41 Move 1035 | 80 104 86 670 95 Hop . | . . . . . Pick Up 11 | 4 3 . 3 1 Fast Attach 9 | 5 . 1 1 2 Attach 8 | 2 . . . 6 Detach 4 | . . 1 . 3 Swap 9 | . 3 . . 6 Drop 11 | . 3 2 . 6 Fire 15 | 10 3 . . 2 Melee 10 | . . . . 10 Ram . | . . . . . Kick . | . . . . . Crush . | . . . . . Escape Stasis . | . . . . . Rewire 1 | . . . 1 . Trap . | . . . . . Miscellaneous . | . . . . . Route ------- -11/Scrapyard -10/Materials (discovered 2 exits: [*Min x2]) -10/Mines -10/Exiles (discovered 2 exits: [*Min x2]) -9/Mines (discovered 1 exit: [*Mat]) History --------- Turn | Location | Event 11 | -11/Scrapyard | Discovered new exit (range 14) 137 | -11/Scrapyard | Entered Materials 137 | -10/Materials | Discovered new exit (range 8) 250 | -10/Materials | Discovered new exit (range 6) 279 | -10/Materials | Entered Mines 294 | -10/Mines | Received a Rocket Launcher from a helpful Derelict 317 | -10/Mines | Deemed a non-threat by the Exiles lab entrance 317 | -10/Mines | Discovered new exit (range 5) 319 | -10/Mines | Build established: Mutant 319 | -10/Mines | Entered Exiles 328 | -10/Exiles | Discovered new exit (range 15) 336 | -10/Exiles | Met 8R-AWN 343 | -10/Exiles | Met EX-HEX 367 | -10/Exiles | Met EX-DEC 369 | -10/Exiles | Learned location of Zion (-6) 448 | -10/Exiles | Discovered new exit (range 14) 764 | -10/Exiles | Visited The Gauntlet 1594 | -10/Exiles | Met EX-BIN 1673 | -10/Exiles | Aligned with FarCom system 1677 | -10/Exiles | Given EX-Vault access code 1825 | -10/Exiles | Opened EX-Vault 1860 | -10/Exiles | Found Longsword +1 1997 | -10/Exiles | Warned to stay clear of 0b10 Research branches 2553 | -10/Exiles | Left Exiles lab with Longsword +1 2553 | -10/Exiles | Entered Mines 2554 | -9/Mines | Assembled infested the area 2576 | -9/Mines | Core integrity fell below 50% 2657 | -9/Mines | Discovered new exit (range 9) 2709 | -9/Mines | Core integrity fell below 20% 2714 | -9/Mines | Destroyed by D-53 Grenadier with Mini Grenade Launcher Last Messages --------------- U-05 Engineer lays Concrete. Dropped Aluminum Leg. U-05 Engineer lays Concrete. U-05 Engineer builds a Wall. Dropped Aluminum Leg. U-05 Engineer builds a Wall. U-05 Engineer lays Concrete. Acquired 21 matter. U-05 Engineer builds a Wall. Aluminum Leg destroyed. The unstable cave ceiling collapses. Rocket Launcher destroyed. Imp. Terrain Scanner destroyed. Plasma Injector explodes. U-05 Engineer builds a Wall. The unstable cave ceiling collapses. U-05 Engineer lays Concrete. K-01 Serf collects debris. U-05 Engineer builds a Wall. Aluminum Leg destroyed. Map ----- +----------------------------------------------------+ | | | | | | | | | | | | | | | | | | | | | | | | | | | | | | | | | | | | | | | | | | | | | ????????????####??#########??????????????????????? | | ????????##### ### ###????????????????????? | | ????????##"" # %######## #?????????? | | ????????## = @!* #????????? | | ????????#" % =####### #???????? | | ????????#" % %* #?????????????????????? | | ??#?????## !# %####???????????????????? | | ????????## u # ##??????????????????? | | ????????## "; # #*=* #??????????????????? | | ????????#####; # =%%%<=!#??????????????????? | | ???????# d =%= #??????????????????? | | ????#?????####### ]%!##??????????????????? | | ????????????????# =%= #???????????????????? | | ????????????????## ! ##???????????????????? | | ?????????????????### %###????????????????????? | | ???#???????????????## %#??????????????????????? | | ??????????#????????######%#??????????????????????? | | ?????????????? ?????????#%#??????????????????????? | | ????????????????????????# #??#???????????????????? | | ????????????????????????= ##?????????????????????? | | ???????????????????????? ??????????????????????? | | ???????????????????????? " ??????????????????????? | | ???????????????????????? #??????????????????????? | | ???????????????????????? ???????????????????????? | | ???????????????????????? ???????????????????????? | | ???????????????????????? ???????????????????????? | | ???????????????????????? ???????????????????????? | | ???????????????????????? ???????????????????????? | +----------------------------------------------------+ Best States ------------- Heat Dissipation 25 Energy Generation 10 Energy Capacity 250 Matter Stores 300 Matter Capacity 300 Sight Range 16 Terrain Scan Range 16 Terrain Scan Density 10 Evasion (%) 62 Item Schematics ----------------- None Robot Schematics ------------------ None Fabricated ------------ Nothing Repaired ---------- Nothing Alien Tech Used ----------------- None Achievements -------------- Librarian Challenges ------------ None Game ------ Seed AluminumStorageRigger Manual? 0 Play Time 00:25:14 Cumulative 4.8 hours Start 2025.06.03 @ 22:20:03 End 2025.06.03 @ 22:46:06 Sessions 1 Manual Loads 0 Difficulty Rogue Special Mode None Game No. 7 Rogue 7 Adventurer 0 Explorer 0 Win Type - Total 0 Types 0/0/0/0/0/0/0/0/0/0 Lore% 8 Gallery% 6 Achievement% 10 Wizard Run 0 Options --------- Layout 0 ASCII 0 Keyboard 0 Movement Mouse Keybinds 0 Fullscreen 1 Font 18/SmallcapsGlow Map View 76x50 Zoom Use 0% Tactical HUD 0 Map Filters NONE Filters NONE Steam 1 RUN: 47377815-ffa3-4d45-902a-cd7defd6cc68